[Event "Turkish Women-ch Arzum 2022"]
[Site "Ayvalik"]
[Date "2022.03.09"]
[Round "7.12"]
[White "Demirtas, Hafize"]
[Black "Tanir, Simay"]
[Result "1-0"]
[ECO "C95"]
[WhiteElo "1779"]
[BlackElo "1510"]
[Annotator "NA"]
[PlyCount "99"]
[EventDate "2022.03.04"]
[EventType "swiss"]
[EventCountry "TUR"]
[SourceTitle "playchess.com"]
[Source "ChessBase"]
[SourceQuality "1"]
[TimeControl "5400+30"]

1. e4 {[%emt 0:01:00]} e5 {[%emt 0:01:00]} 2. Nf3 {[%emt 0:00:30]} Nc6 {[%emt 0:00:30]} 3. Bb5 {[%emt 0:00:30]} a6 {[%emt 0:00:30]} 4. Ba4 {[%emt 0:00:30]} Nf6 {[%emt 0:00:30]} 5. O-O {[%emt 0:00:00]} Be7 {[%emt 0:00:00]} 6. Re1 {[%emt 0:00:00]} b5 {[%emt 0:00:00]} 7. Bb3 {[%emt 0:00:00]} d6 {[%emt 0:00:00]} 8. c3 {[%emt 0:00:00]} O-O {[%emt 0:00:00]} 9. h3 {[%emt 0:00:00]} Nb8 {[%emt 0:00:30]} 10. d4 {[%emt 0:00:00]} Nbd7 {[%emt 0:00:30]} 11. Nbd2 {[%emt 0:00:00]} Bb7 {[%emt 0:02:30]} 12. Bc2 {[%emt 0:00:00]} Re8 {[%emt 0:00:30]} 13. Nf1 {[%emt 0:00:00]} Bf8 {[%emt 0:01:30]} 14. Ng3 {[%emt 0:00:00]} g6 {[%emt 0:00:30]} 15. a4 {[%emt 0:00:00]} c5 {[%emt 0:00:30]} 16. Bg5 {[%emt 0:00:00]} h6 {[%emt 0:01:30]} 17. Be3 {[%emt 0:00:00]} exd4 {[%emt 0:04:30]} 18. cxd4 {[%emt 0:00:00]} Nxe4 {[%emt 0:00:30]} 19. Nxe4 {[%emt 0:00:30]} Bxe4 {[%emt 0:00:30]} 20. Bxe4 {[%emt 0:00:30]} Rxe4 {[%emt 0:00:00]} 21. axb5 {[%emt 0:00:30]} axb5 {[%emt 0:00:00]} 22. Qd3 {[%emt 0:00:30]} Nf6 {[%emt 0:05:30]} 23. Rxa8 {[%emt 0:00:30]} Qxa8 {[%emt 0:00:00]} 24. Qxb5 {[%emt 0:00:30]} cxd4 {[%emt 0:13:00]} 25. Bxd4 {[%emt 0:02:30]} Rxe1+ {[%emt 0:09:30]} 26. Nxe1 {[%emt 0:00:30]} Bg7 {[%emt 0:07:30]} 27. Nf3 {[%emt 0:01:30]} Ne4 {[%emt 0:00:30]} 28. Qb6 {[%emt 0:07:30]} Qa1+ {[%emt 0:04:30]} 29. Kh2 {[%emt 0:00:30]} Qc1 {[%emt 0:00:30]} 30. Bxg7 {[%emt 0:30:30]} Kxg7 {[%emt 0:03:30]} 31. Qd4+ {[%emt 0:00:30]} Nf6 {[%emt 0:00:00]} 32. b4 {[%emt 0:06:30]} Qc6 {[%emt 0:04:00]} 33. Qb2 {[%emt 0:02:30]} d5 {[%emt 0:05:30]} 34. Kg1 {[%emt 0:01:30]} Kg8 {[%emt 0:01:30]} 35. b5 {[%emt 0:02:30]} Qb6 {[%emt 0:03:30]} 36. Nd4 {[%emt 0:06:30]} Ne4 {[%emt 0:12:30]} 37. Kf1 {[%emt 0:04:30]} Nd6 {[%emt 0:03:01]} 38. Ke2 {[%emt 0:02:30]} Nc4 {[%emt 0:02:58]} 39. Qa1 {[%emt 0:05:30]} Kh7 {[%emt 0:01:37]} 40. Qc3 {[%emt 0:04:30]} Qf6 {[%emt 0:04:50]} 41. Qd3 {[%emt 0:05:32]} Qe7+ {[%emt 0:02:55]} 42. Kf1 {[%emt 0:00:47]} Qb4 {[%emt 0:00:17]} 43. g3 {[%emt 0:01:43]} Nb2 {[%emt 0:03:35]} 44. Qe3 {[%emt 0:02:14]} Nd1 {[%emt 0:00:14]} 45. Qf4 {[%emt 0:01:34]} Nc3 {[%emt 0:03:37]} 46. Qxf7+ {[%emt 0:05:32]} Kh8 {[%emt 0:00:04]} 47. Ne6 {[%emt 0:00:23]} Qb1+ {[%emt 0:00:57]} 48. Kg2 {[%emt 0:00:11]} Qe4+ {[%emt 0:00:16]} 49. Kh2 {[%emt 0:00:06]} Qe5 {[%emt 0:00:21]} 50. Qe8+ {[%emt 0:00:04]} 1-0

[Event "Turkish Women-ch Arzum 2022"]
[Site "Ayvalik"]
[Date "2022.03.09"]
[Round "7.13"]
[White "Baloglu, Dila"]
[Black "Acar, Ilayda"]
[Result "0-1"]
[ECO "D02"]
[WhiteElo "1630"]
[BlackElo "1460"]
[Annotator "NA"]
[PlyCount "62"]
[EventDate "2022.03.04"]
[EventType "swiss"]
[EventCountry "TUR"]
[SourceTitle "playchess.com"]
[Source "ChessBase"]
[SourceQuality "1"]
[TimeControl "5400+30"]

1. d4 {[%emt 0:03:00]} Nf6 {[%emt 0:01:00]} 2. Bf4 {[%emt 0:00:30]} e6 {[%emt 0:00:30]} 3. Nf3 {[%emt 0:00:30]} d5 {[%emt 0:01:30]} 4. e3 {[%emt 0:00:30]} c5 {[%emt 0:01:30]} 5. c3 {[%emt 0:00:30]} Bd6 {[%emt 0:01:30]} 6. Bg3 {[%emt 0:04:30]} O-O {[%emt 0:02:30]} 7. Bd3 {[%emt 0:03:30]} Ne4 {[%emt 0:03:30]} 8. Nbd2 {[%emt 0:06:30]} f5 {[%emt 0:01:30]} 9. Bxd6 {[%emt 0:06:30]} Qxd6 {[%emt 0:00:30]} 10. Ne5 {[%emt 0:00:30]} b6 {[%emt 0:05:30]} 11. f4 {[%emt 0:05:30]} Nxd2 {[%emt 0:05:30]} 12. Qxd2 {[%emt 0:00:30]} Nd7 {[%emt 0:00:30]} 13. O-O-O {[%emt 0:04:30]} c4 {[%emt 0:01:30]} 14. Bb1 {[%emt 0:00:30]} b5 {[%emt 0:01:30]} 15. g4 {[%emt 0:02:30]} a5 {[%emt 0:03:30]} 16. gxf5 {[%emt 0:04:30]} exf5 {[%emt 0:01:30]} 17. Rdg1 {[%emt 0:02:30]} Nxe5 {[%emt 0:03:30]} 18. fxe5 {[%emt 0:05:30]} Qe7 {[%emt 0:02:30]} 19. Rg3 {[%emt 0:02:30]} Rf7 {[%emt 0:02:30]} 20. h4 {[%emt 0:04:30]} b4 {[%emt 0:07:30]} 21. h5 {[%emt 0:08:30]} Rb8 {[%emt 0:06:30]} 22. Rhg1 {[%emt 0:04:30]} Be6 {[%emt 0:04:30]} 23. Rg5 {[%emt 0:09:30]} bxc3 {[%emt 0:09:30]} 24. Qxc3 {[%emt 0:00:30]} Qb4 {[%emt 0:00:00]} 25. Qc2 {[%emt 0:04:05]} Rfb7 {[%emt 0:03:00]} 26. Qg2 {[%emt 0:06:28]} Qxb2+ {[%emt 0:06:30]} 27. Qxb2 {[%emt 0:00:30]} Rxb2 {[%emt 0:00:00]} 28. Rxg7+ {[%emt 0:00:24]} Kh8 {[%emt 0:00:00]} 29. Bc2 {[%emt 0:00:22]} Rxa2 {[%emt 0:02:30]} 30. R1g2 {[%emt 0:03:30]} c3 {[%emt 0:02:30]} 31. Kd1 {[%emt 0:00:55]} Rbb2 {[%emt 0:01:30]} 0-1

[Event "Turkish Women-ch Arzum 2022"]
[Site "Ayvalik"]
[Date "2022.03.09"]
[Round "7.14"]
[White "Yurdakul, Didem Nuray"]
[Black "Karatiken, Beray"]
[Result "0-1"]
[ECO "B22"]
[WhiteElo "1804"]
[BlackElo "1380"]
[Annotator "NA"]
[PlyCount "112"]
[EventDate "2022.03.04"]
[EventType "swiss"]
[EventCountry "TUR"]
[SourceTitle "playchess.com"]
[Source "ChessBase"]
[SourceQuality "1"]
[TimeControl "5400+30"]

1. e4 {[%emt 0:01:00]} c5 {[%emt 0:01:00]} 2. Nf3 {[%emt 0:00:30]} e6 {[%emt 0:00:30]} 3. c3 {[%emt 0:00:30]} Nc6 {[%emt 0:00:30]} 4. d4 {[%emt 0:00:30]} d5 {[%emt 0:00:30]} 5. exd5 {[%emt 0:00:30]} exd5 {[%emt 0:00:30]} 6. Bb5 {[%emt 0:00:00]} a6 {[%emt 0:00:00]} 7. Bxc6+ {[%emt 0:00:00]} bxc6 {[%emt 0:00:00]} 8. O-O {[%emt 0:00:00]} Nf6 {[%emt 0:01:30]} (8... Bd6 $1 $11 {is superior.}) 9. Re1+ {[%emt 0:00:00]} Be7 {[%emt 0:02:30]} 10. dxc5 {[%emt 0:00:30]} O-O {[%emt 0:00:30]} 11. b4 {[%emt 0:00:30]} Ne4 {[%emt 0:00:30]} 12. Nd4 {[%emt 0:00:30]} Bd7 {[%emt 0:02:30]} 13. f3 {[%emt 0:05:30]} Ng5 {[%emt 0:04:30]} 14. Qa4 {[%emt 0:03:30]} ({Better is} 14. Nd2 $16) 14... Bf6 {[%emt 0:04:30]} 15. Bf4 $2 {[%emt 0:03:30]} ({But not} 15. Nxc6 $2 Re8 16. Rxe8+ Qxe8 $19) (15. Na3 $11 {and White has nothing to worry.}) 15... Ne6 $2 {[%emt 0:02:30]} ({Better is} 15... Bxd4+ $19 16. cxd4 {[#]} Nxf3+ $1 {[%mdl 512]} 17. gxf3 Qh4) 16. Nxe6 {[%emt 0:02:30]} fxe6 {[%emt 0:00:30]} 17. Bd6 {[%emt 0:00:00]} Re8 {[%emt 0:00:00]} 18. f4 {[%emt 0:01:00]} a5 {[%emt 0:04:00]} 19. a3 {[%emt 0:05:30]} axb4 {[%emt 0:01:30]} 20. Qxb4 {[%emt 0:00:00]} Qa5 $1 {[%emt 0:07:30]} 21. Ra2 {[%emt 0:01:00]} d4 {[%emt 0:09:30]} 22. Be5 {[%emt 0:01:30]} Bxe5 $1 {[%emt 0:00:30]} 23. Rxe5 $4 {[%emt 0:00:30]} (23. fxe5 $11 {and White stays safe.} dxc3 24. Nxc3) 23... Reb8 {[%emt 0:00:00] Skewer} 24. Qxd4 {[%emt 0:01:30]} Rxb1+ {[%emt 0:00:00]} 25. Kf2 {[%emt 0:00:30]} Rd8 {[%emt 0:03:30]} 26. a4 $2 {[%emt 0:06:30]} (26. Rg5 $1 $11 {and White is okay.} g6 27. Qd3) 26... Bc8 {[%emt 0:07:30]} 27. Qe3 {[%emt 0:00:30]} Qa6 {[%emt 0:10:30]} 28. Rd2 {[%emt 0:02:30]} Rf1+ {[%emt 0:05:30]} 29. Kg3 {[%emt 0:00:00]} Rf8 {[%emt 0:01:30]} 30. Re4 {[%emt 0:02:00]} Qa7 {[%emt 0:03:30]} 31. Qd3 {[%emt 0:05:30]} Ra1 {[%emt 0:01:30]} 32. Qc4 {[%emt 0:01:30]} Qf7 {[%emt 0:01:30]} 33. Re5 {[%emt 0:01:30]} Ba6 {[%emt 0:06:30]} 34. Qe4 $19 {[%emt 0:01:30]} (34. Qxe6 Bc4 35. Qxf7+ Bxf7 36. Rd6) 34... Rf1 {[%emt 0:00:30]} 35. Rd4 {[%emt 0:02:30]} Qc7 {[%emt 0:06:32]} 36. Rh5 {[%emt 0:05:30]} g6 {[%emt 0:03:25]} 37. Qxe6+ {[%emt 0:01:30]} Qf7 {[%emt 0:00:06]} 38. Qxf7+ {[%emt 0:00:00]} Rxf7 {[%emt 0:00:03]} 39. Re5 {[%emt 0:01:00]} Rc1 {[%emt 0:00:25]} 40. Kg4 {[%emt 0:03:30]} Rxc3 {[%emt 0:00:29]} 41. Kh4 {[%emt 0:02:30]} Rc2 {[%emt 0:00:45]} 42. Kg3 {[%emt 0:00:30]} Bf1 {[%emt 0:00:44]} 43. a5 {[%emt 0:01:30]} Rxg2+ {[%emt 0:00:30]} 44. Kf3 {[%emt 0:00:00]} Ra2 {[%emt 0:00:08]} 45. Re8+ {[%emt 0:00:00]} Kg7 {[%emt 0:00:56]} 46. Ra8 {[%emt 0:00:30]} Rb7 {[%emt 0:00:21]} 47. Kg4 {[%emt 0:00:30]} Rb3 {[%emt 0:00:50]} 48. Ra7+ {[%emt 0:02:30]} Kh6 {[%emt 0:01:00]} 49. f5 {[%emt 0:00:30]} Rg2+ {[%emt 0:02:06]} 50. Kf4 {[%emt 0:00:00]} Rf2+ {[%emt 0:00:09]} 51. Ke5 {[%emt 0:01:00]} Rxf5+ {[%emt 0:01:03]} 52. Kd6 {[%emt 0:00:00]} Rh5 {[%emt 0:01:41]} 53. Kxc6 {[%emt 0:01:00]} Rc3 {[%emt 0:00:11]} 54. Rdd7 {[%emt 0:02:30]} Rcxc5+ {[%emt 0:00:35]} 55. Kb6 {[%emt 0:00:30]} Rb5+ {[%emt 0:00:00]} 56. Kc7 {[%emt 0:00:30]} Rxa5 {[%emt 0:00:08]} 0-1

[Event "Turkish Women-ch Arzum 2022"]
[Site "Ayvalik"]
[Date "2022.03.09"]
[Round "7.15"]
[White "Akin, Duru"]
[Black "Gedik, Eylul Ceren"]
[Result "1-0"]
[ECO "D05"]
[WhiteElo "1563"]
[BlackElo "1282"]
[Annotator "NA RC"]
[PlyCount "117"]
[EventDate "2022.03.04"]
[EventType "swiss"]
[EventCountry "TUR"]
[SourceTitle "playchess.com"]
[Source "ChessBase"]
[SourceQuality "1"]
[TimeControl "5400+30"]

1. d4 {[%emt 0:01:00]} d5 {[%emt 0:01:00]} 2. Nf3 {[%emt 0:00:30]} Nf6 {[%emt 0:00:30]} 3. e3 {[%emt 0:00:30]} e6 {[%emt 0:00:30]} 4. Bd3 {[%emt 0:00:00]} Bd6 {[%emt 0:02:30]} 5. b3 {[%emt 0:00:00]} O-O {[%emt 0:01:30]} 6. Bb2 {[%emt 0:00:00]} c5 {[%emt 0:00:30]} 7. Nbd2 {[%emt 0:00:00]} Nc6 {[%emt 0:00:00]} 8. O-O {[%emt 0:00:30]} b6 {[%emt 0:10:00]} 9. Ne5 {[%emt 0:02:30]} Bb7 {[%emt 0:03:30]} 10. f4 {[%emt 0:00:30]} Rc8 {[%emt 0:06:30]} 11. a3 {[%emt 0:00:00]} Ne7 {[%emt 0:06:30]} 12. g4 {[%emt 0:14:00]} Ne4 {[%emt 0:02:30]} 13. c4 {[%emt 0:04:30]} Qe8 {[%emt 0:10:30]} 14. Qc2 {[%emt 0:25:30]} f5 {[%emt 0:07:30]} 15. g5 {[%emt 0:00:30]} Bxe5 {[%emt 0:06:30]} 16. dxe5 {[%emt 0:00:30]} Nxd2 {[%emt 0:01:30]} 17. Qxd2 {[%emt 0:00:30]} dxc4 {[%emt 0:00:00]} 18. bxc4 {[%emt 0:08:30]} Qc6 {[%emt 0:00:00]} 19. Kf2 {[%emt 0:03:30]} Rfd8 {[%emt 0:00:30]} 20. Qe2 {[%emt 0:03:30]} Ng6 {[%emt 0:18:30]} 21. Rg1 {[%emt 0:00:00]} Rxd3 {[%emt 0:05:16]} 22. Qxd3 {[%emt 0:00:00]} Qf3+ {[%emt 0:00:29]} 23. Ke1 {[%emt 0:00:30]} Nxf4 {[%emt 0:00:00]} 24. Qd2 {[%emt 0:05:30]} Nh3 {[%emt 0:00:50]} 25. Rf1 {[%emt 0:01:30]} Nxg5 {[%emt 0:00:01]} 26. Qe2 {[%emt 0:02:30]} Qxe2+ {[%emt 0:02:17]} 27. Kxe2 {[%emt 0:00:00]} Ba6 {[%emt 0:02:33]} 28. Rac1 {[%emt 0:01:00]} Rd8 {[%emt 0:01:13]} 29. Rfd1 {[%emt 0:03:30]} Rd5 {[%emt 0:01:56]} 30. Rd3 {[%emt 0:06:07]} Rxd3 {[%emt 0:01:34]} 31. Kxd3 {[%emt 0:00:30]} Ne4 {[%emt 0:00:00]} 32. a4 {[%emt 0:00:23]} g5 {[%emt 0:00:55]} 33. Ke2 {[%emt 0:03:06]} h5 {[%emt 0:00:15]} 34. Rc2 {[%emt 0:02:41]} h4 {[%emt 0:00:50]} 35. Bc1 {[%emt 0:01:30]} g4 {[%emt 0:00:05]} 36. Bd2 {[%emt 0:00:54]} Ng5 {[%emt 0:00:23]} 37. Be1 {[%emt 0:01:37]} Nf3 {[%emt 0:00:19]} 38. a5 {[%emt 0:06:20]} bxa5 {[%emt 0:03:24]} 39. Bxa5 {[%emt 0:01:08]} Nxh2 {[%emt 0:00:46]} 40. Kf2 {[%emt 0:01:00]} g3+ {[%emt 0:00:40]} 41. Kg2 {[%emt 0:00:53]} Bb7+ {[%emt 0:00:00]} 42. Kh3 {[%emt 0:00:48]} Nf1 {[%emt 0:02:39]} 43. Be1 {[%emt 0:01:13]} Nxe3 {[%emt 0:00:14]} 44. Rb2 {[%emt 0:00:18]} Be4 {[%emt 0:01:44]} 45. Kxh4 {[%emt 0:00:16]} g2 {[%emt 0:01:36]} 46. Bf2 {[%emt 0:00:56]} Nd1 {[%emt 0:01:09]} 47. Rb8+ {[%emt 0:00:05]} Kf7 {[%emt 0:00:30]} 48. Bxc5 {[%emt 0:00:08]} Kg7 {[%emt 0:01:03]} 49. Kg5 {[%emt 0:00:56]} a5 {[%emt 0:00:40]} 50. Re8 {[%emt 0:01:47]} Kf7 {[%emt 0:01:06]} 51. Re7+ {[%emt 0:00:05]} Kg8 {[%emt 0:00:06]} 52. Kh6 {[%emt 0:01:40]} f4 {[%emt 0:01:00]} 53. Rg7+ {[%emt 0:00:30]} Kh8 {[%emt 0:00:00]} 54. Rd7 {[%emt 0:00:00]} g1=Q {[%emt 0:00:50]} 55. Bxg1 {[%emt 0:00:00]} Kg8 {[%emt 0:01:02]} 56. Rxd1 {[%emt 0:00:24]} Bc6 {[%emt 0:00:00]} 57. Bc5 {[%emt 0:00:12]} Kf7 {[%emt 0:00:00]} 58. Rd6 {[%emt 0:00:26]} Ba4 {[%emt 0:00:35]} 59. Ra6 {[%emt 0:00:30]} 1-0

[Event "Turkish Women-ch Arzum 2022"]
[Site "Ayvalik"]
[Date "2022.03.09"]
[Round "7.16"]
[White "Yilmaz, Gokcen"]
[Black "Alagoz, Zumra Meryem"]
[Result "0-1"]
[ECO "B08"]
[WhiteElo "1647"]
[BlackElo "1573"]
[Annotator "NA"]
[PlyCount "88"]
[EventDate "2022.03.04"]
[EventType "swiss"]
[EventCountry "TUR"]
[SourceTitle "playchess.com"]
[Source "ChessBase"]
[SourceQuality "1"]
[TimeControl "5400+30"]

1. e4 {[%emt 0:01:00]} g6 {[%emt 0:01:00]} 2. d4 {[%emt 0:00:30]} Bg7 {[%emt 0:00:30]} 3. Nc3 {[%emt 0:00:30]} d6 {[%emt 0:00:30]} 4. Be3 {[%emt 0:00:00]} Nf6 {[%emt 0:00:00]} 5. Qd2 {[%emt 0:00:00]} c6 {[%emt 0:00:00]} 6. Nf3 {[%emt 0:05:30]} b5 {[%emt 0:02:30]} 7. Bd3 {[%emt 0:01:30]} b4 {[%emt 0:12:30]} 8. Ne2 {[%emt 0:00:30]} a5 {[%emt 0:04:30]} 9. Ng3 {[%emt 0:00:30]} Ng4 {[%emt 0:07:30]} 10. Bf4 {[%emt 0:06:30]} e5 {[%emt 0:01:30]} 11. Bg5 {[%emt 0:01:30]} f6 {[%emt 0:00:30]} 12. Be3 {[%emt 0:03:30]} Nxe3 {[%emt 0:07:30]} 13. Qxe3 {[%emt 0:00:30]} Nd7 {[%emt 0:07:30]} 14. dxe5 {[%emt 0:02:30]} dxe5 {[%emt 0:03:30]} 15. Rd1 {[%emt 0:01:30]} Qb6 {[%emt 0:01:30]} 16. Qe2 {[%emt 0:04:30]} Nc5 {[%emt 0:03:30]} 17. b3 {[%emt 0:06:30]} Ne6 {[%emt 0:07:30]} 18. Bc4 {[%emt 0:05:30]} Nf4 {[%emt 0:01:30]} 19. Qf1 {[%emt 0:00:00]} Ba6 {[%emt 0:03:30]} 20. Bxa6 {[%emt 0:00:00]} Qxa6 {[%emt 0:00:30]} 21. Qxa6 {[%emt 0:00:30]} Rxa6 {[%emt 0:00:00]} 22. O-O {[%emt 0:00:30]} Ke7 {[%emt 0:01:00]} 23. Rd2 {[%emt 0:00:30]} Rd8 {[%emt 0:02:30]} 24. Rxd8 {[%emt 0:00:30]} Kxd8 {[%emt 0:00:30]} 25. Rd1+ {[%emt 0:00:00]} Kc7 {[%emt 0:01:30]} 26. Kf1 {[%emt 0:00:00]} a4 {[%emt 0:00:00]} 27. Ne2 {[%emt 0:00:30]} Ne6 {[%emt 0:01:00]} 28. Nd2 {[%emt 0:05:30]} axb3 {[%emt 0:01:30]} 29. axb3 {[%emt 0:00:30]} Ra2 {[%emt 0:01:30]} 30. Rc1 {[%emt 0:05:30]} Bh6 {[%emt 0:01:30]} 31. Ke1 {[%emt 0:00:00]} Nc5 {[%emt 0:00:30]} 32. Kd1 {[%emt 0:01:00]} Bxd2 {[%emt 0:00:30]} 33. Kxd2 {[%emt 0:00:00]} Nxb3+ {[%emt 0:00:00]} 34. Kd1 {[%emt 0:00:00]} Nxc1 {[%emt 0:00:00]} 35. Nxc1 {[%emt 0:00:30]} Ra8 {[%emt 0:02:30]} 36. Ke2 {[%emt 0:00:00]} Rd8 {[%emt 0:00:00]} 37. Nd3 {[%emt 0:01:00]} Rd4 {[%emt 0:00:00]} 38. Ke3 {[%emt 0:00:00]} Kd6 {[%emt 0:01:30]} 39. f3 {[%emt 0:01:00]} c5 {[%emt 0:01:30]} 40. Ke2 {[%emt 0:00:30]} Kc6 {[%emt 0:00:30]} 41. Nc1 {[%emt 0:02:30]} c4 {[%emt 0:00:30]} 42. Ke1 {[%emt 0:00:30]} Kb5 {[%emt 0:00:30]} 43. Ne2 {[%emt 0:00:30]} Rd8 {[%emt 0:00:30]} 44. Nc1 {[%emt 0:00:30]} Ka4 {[%emt 0:00:30]} 0-1

[Event "Turkish Women-ch Arzum 2022"]
[Site "Ayvalik"]
[Date "2022.03.09"]
[Round "7.17"]
[White "Zengin, Ovgu"]
[Black "Kucuk, Aybike"]
[Result "1/2-1/2"]
[ECO "B15"]
[WhiteElo "1475"]
[BlackElo "1439"]
[Annotator "NA"]
[PlyCount "81"]
[EventDate "2022.03.04"]
[EventType "swiss"]
[EventCountry "TUR"]
[SourceTitle "playchess.com"]
[Source "ChessBase"]
[SourceQuality "1"]
[TimeControl "5400+30"]

1. e4 {[%emt 0:01:00]} g6 {[%emt 0:01:00]} 2. d4 {[%emt 0:00:30]} Bg7 {[%emt 0:00:30]} 3. Nc3 {[%emt 0:00:30]} c6 {[%emt 0:00:00]} 4. Nf3 {[%emt 0:00:30]} d5 {[%emt 0:00:00]} 5. exd5 {[%emt 0:03:30]} cxd5 {[%emt 0:00:30]} 6. Be3 {[%emt 0:01:30]} Nf6 {[%emt 0:02:30]} 7. h3 {[%emt 0:02:30]} Nc6 {[%emt 0:02:30]} 8. Bb5 {[%emt 0:05:30]} O-O {[%emt 0:01:30]} 9. Bxc6 {[%emt 0:06:30]} bxc6 {[%emt 0:00:00]} 10. Ne5 {[%emt 0:00:30]} Bb7 {[%emt 0:13:00]} 11. Ng4 {[%emt 0:05:30]} Re8 {[%emt 0:15:30]} 12. Qd2 {[%emt 0:04:30]} Ne4 {[%emt 0:07:30]} 13. Nxe4 {[%emt 0:01:30]} dxe4 {[%emt 0:00:30]} 14. O-O-O {[%emt 0:02:30]} Qd5 {[%emt 0:00:30]} 15. Kb1 {[%emt 0:02:30]} Bc8 {[%emt 0:01:30]} 16. Bf4 {[%emt 0:04:30]} a5 {[%emt 0:05:30]} 17. Ne3 {[%emt 0:04:30]} Qb5 {[%emt 0:02:30]} 18. Qc3 {[%emt 0:05:30]} Be6 {[%emt 0:01:30]} 19. Be5 {[%emt 0:03:30]} Qb4 {[%emt 0:04:30]} 20. Bxg7 {[%emt 0:08:30]} Qxc3 {[%emt 0:00:30]} 21. bxc3 {[%emt 0:00:30]} Kxg7 {[%emt 0:00:30]} 22. Ka1 {[%emt 0:00:30]} f5 {[%emt 0:02:30]} 23. g3 {[%emt 0:03:30]} Rab8 {[%emt 0:05:30]} 24. Rb1 {[%emt 0:00:30]} g5 {[%emt 0:00:30]} 25. h4 {[%emt 0:04:30]} h6 {[%emt 0:00:00]} 26. hxg5 {[%emt 0:03:30]} hxg5 {[%emt 0:00:00]} 27. Rhe1 {[%emt 0:00:30]} Rh8 {[%emt 0:00:30]} 28. Rxb8 {[%emt 0:00:30]} Rxb8 {[%emt 0:00:30]} 29. Rb1 {[%emt 0:06:24]} Rxb1+ {[%emt 0:11:30]} 30. Kxb1 {[%emt 0:00:06]} Kf6 {[%emt 0:00:00]} 31. Ng2 {[%emt 0:00:54]} Bc4 {[%emt 0:02:00]} 32. Ne3 {[%emt 0:01:03]} Be2 {[%emt 0:01:30]} 33. Kc1 {[%emt 0:01:42]} f4 {[%emt 0:03:48]} 34. gxf4 {[%emt 0:01:22]} gxf4 {[%emt 0:00:02]} 35. Ng2 {[%emt 0:00:07]} Kg5 {[%emt 0:01:31]} 36. Kd2 {[%emt 0:00:44]} Bf1 {[%emt 0:01:59]} 37. Ne1 {[%emt 0:01:00]} Kf5 {[%emt 0:00:41]} 38. f3 {[%emt 0:03:22]} e3+ {[%emt 0:01:01]} 39. Kd1 {[%emt 0:00:43]} e5 {[%emt 0:00:25]} 40. Nd3 {[%emt 0:02:04]} Bxd3 {[%emt 0:00:35]} 41. cxd3 {[%emt 0:00:00]} 1/2-1/2

[Event "Turkish Women-ch Arzum 2022"]
[Site "Ayvalik"]
[Date "2022.03.09"]
[Round "7.19"]
[White "Gulceken, Sumeyye"]
[Black "Senkal, Defne"]
[Result "1-0"]
[ECO "E51"]
[WhiteElo "1591"]
[BlackElo "1247"]
[Annotator "NA"]
[PlyCount "69"]
[EventDate "2022.03.04"]
[EventType "swiss"]
[EventCountry "TUR"]
[SourceTitle "playchess.com"]
[Source "ChessBase"]
[SourceQuality "1"]
[TimeControl "5400+30"]

1. d4 {[%emt 0:01:00]} Nf6 {[%emt 0:01:00]} 2. c4 {[%emt 0:00:00]} e6 {[%emt 0:00:30]} 3. Nc3 {[%emt 0:00:00]} Bb4 {[%emt 0:00:30]} 4. e3 {[%emt 0:00:30]} d5 {[%emt 0:00:30]} 5. Nf3 {[%emt 0:00:00]} O-O {[%emt 0:01:30]} 6. Bd3 {[%emt 0:00:00]} Ne4 {[%emt 0:01:30]} 7. Qc2 {[%emt 0:02:30]} f5 {[%emt 0:02:30]} 8. O-O {[%emt 0:00:30]} b6 {[%emt 0:01:30]} 9. cxd5 {[%emt 0:01:30]} exd5 {[%emt 0:01:30]} 10. Nxd5 {[%emt 0:01:30]} Bd6 {[%emt 0:04:30]} 11. Nc3 {[%emt 0:01:30]} Nxc3 {[%emt 0:03:30]} 12. bxc3 {[%emt 0:00:30]} Qf6 {[%emt 0:01:30]} 13. e4 {[%emt 0:05:30]} Qg6 {[%emt 0:03:30]} 14. e5 {[%emt 0:05:30]} Be7 {[%emt 0:00:30]} 15. d5 {[%emt 0:02:30]} Bb7 {[%emt 0:01:30]} 16. c4 {[%emt 0:01:30]} Na6 {[%emt 0:04:30]} 17. Qe2 {[%emt 0:02:30]} Nc5 {[%emt 0:01:30]} 18. Bc2 {[%emt 0:01:30]} Rae8 {[%emt 0:04:30]} 19. Nd4 {[%emt 0:05:30]} c6 {[%emt 0:07:30]} 20. Qf3 {[%emt 0:08:30]} cxd5 {[%emt 0:04:30]} 21. cxd5 {[%emt 0:00:00]} Ne4 {[%emt 0:06:30]} 22. Bb3 {[%emt 0:17:00]} Kh8 {[%emt 0:00:30]} 23. Ne6 {[%emt 0:01:30]} Rf7 {[%emt 0:08:30]} 24. Nf4 {[%emt 0:03:30]} Qg5 {[%emt 0:03:30]} 25. Qh3 {[%emt 0:06:30]} Bc5 {[%emt 0:02:30]} 26. d6 {[%emt 0:02:30]} Rd7 {[%emt 0:02:30]} 27. Ba4 {[%emt 0:02:30]} Nxf2 {[%emt 0:08:30]} 28. Rxf2 {[%emt 0:00:30]} Rxe5 {[%emt 0:00:30]} 29. Nd3 {[%emt 0:06:30]} Bxf2+ {[%emt 0:01:30]} 30. Kxf2 {[%emt 0:01:30]} Qf6 {[%emt 0:02:30]} 31. Bxd7 {[%emt 0:01:30]} Rd5 {[%emt 0:00:40]} 32. Qe3 {[%emt 0:02:33]} h6 {[%emt 0:02:45]} 33. Bb2 {[%emt 0:06:05]} Qxd6 {[%emt 0:00:38]} 34. Be6 {[%emt 0:01:25]} Rxd3 {[%emt 0:00:54]} 35. Qxh6# {[%emt 0:01:07]} 1-0